bitfinex/quotes_SOLUSD_20220207
["timestamp","ask_amount","ask_price","bid_price","bid_amount"]
[1644245677799,44.51223132,121.05,120.97,12.3999]
[1644245677995,44.61223132,121.05,120.97,12.3999]
[1644245678197,44.51223132,121.05,120.97,12.3999]
[1644245678396,50.36223132,121.05,120.97,12.3999]
[1644245678596,50.26223132,121.05,120.97,12.3999]
[1644245678797,50.36223132,121.05,120.97,12.3999]
[1644245678997,50.26223132,121.05,120.97,12.3999]
[1644245679399,50.36223132,121.05,120.97,12.3999]
[1644245679599,50.26223132,121.05,120.96,12.402]
[1644245679799,44.36223132,121.05,120.95,9.962]
[1644245679999,44.36223132,121.05,120.96,4.132]
[1644245680199,44.36223132,121.05,120.96,14.242]
[1644245680402,44.26223132,121.05,120.96,14.242]
[1644245680617,44.36223132,121.05,120.97,46.55101708]
[1644245680816,44.26223132,121.05,120.97,46.55101708]
[1644245681017,44.36223132,121.05,120.99,31.76492267]
[1644245681217,44.26223132,121.05,120.99,0.25]
[1644245681417,44.36223132,121.05,120.97,51.4344]
[1644245681617,44.51223132,121.05,120.97,16.11]
[1644245681818,44.61223132,121.05,120.97,16.11]
[1644245682019,44.26223132,121.05,120.97,22.5102]
[1644245682218,44.36223132,121.05,120.97,22.5102]
[1644245682620,44.26223132,121.05,120.97,22.5102]
[1644245683125,44.36223132,121.05,120.97,22.5102]
[1644245683318,44.26223132,121.05,120.97,22.0102]
[1644245683519,44.61223132,121.05,120.97,22.0102]
[1644245683719,44.51223132,121.05,120.97,53.03530174]
[1644245683920,44.61223132,121.05,120.97,22.2602]
[1644245684121,44.51223132,121.05,120.97,22.2602]
[1644245684324,44.61223132,121.05,120.97,22.2602]
[1644245684522,44.26223132,121.05,120.97,22.2602]
[1644245684720,44.26223132,121.05,120.97,22.0102]
[1644245684721,44.61223132,121.05,120.97,22.0102]
[1644245684921,44.51223132,121.05,120.97,22.0102]
[1644245685323,44.61223132,121.05,120.95,22.3644]
[1644245685523,56.91503132,121.05,120.95,22.3644]
[1644245685825,4.132,121.04,120.95,22.3644]
[1644245686023,50.51223132,121.05,120.95,22.3644]
[1644245686227,44.61223132,121.05,120.95,24.14114451]
[1644245686424,44.51223132,121.05,120.95,24.14114451]
[1644245686624,44.61223132,121.05,120.95,24.14114451]
[1644245686824,44.51223132,121.05,120.95,24.39114451]
[1644245687027,44.61223132,121.05,120.95,28.52314451]
[1644245687226,44.51223132,121.05,120.95,24.39114451]
[1644245687426,44.61223132,121.05,120.95,22.6144]
[1644245687627,44.51223132,121.05,120.95,22.6144]
[1644245687826,44.61223132,121.05,120.95,24.39114451]
[1644245688027,44.51223132,121.05,120.95,24.39114451]
[1644245688225,44.61223132,121.05,120.95,24.14114451]
[1644245688428,44.51223132,121.05,120.95,22.3644]
[1644245688627,44.61223132,121.05,120.95,22.3644]
[1644245688829,44.51223132,121.05,120.95,22.3644]
[1644245689029,44.61223132,121.05,120.95,22.3644]
[1644245689229,44.51223132,121.05,120.95,22.3644]
[1644245689430,44.61223132,121.05,120.95,57.3178395]
[1644245689632,44.51223132,121.05,120.95,57.3178395]
[1644245689830,44.61223132,121.05,120.95,57.3178395]
[1644245690031,44.51223132,121.05,120.95,59.34458401]
[1644245690232,44.61223132,121.05,120.95,59.34458401]
[1644245690433,44.51223132,121.05,120.95,59.34458401]
[1644245690732,44.36223132,121.05,120.95,59.34458401]
[1644245691036,1.69,120.97,120.95,63.47658401]
[1644245691635,1.69,120.97,120.95,28.52314451]
[1644245692035,0.7371074,121.07,120.95,28.52314451]
[1644245692535,44.96271815,121.06,120.95,26.4964]
[1644245692735,0.1,121.05,120.95,26.4964]
[1644245693135,42.43152805,121.04,120.95,26.4964]
[1644245693337,42.43152805,121.04,120.9,1.80074451]
[1644245693338,158.0,121.03,120.9,1.80074451]
[1644245693537,158.0,121.03,120.85,3.46747228]
[1644245693538,15.0,121.01,120.85,3.46747228]
[1644245693735,0.31089388,120.97,120.88,1.13977691]
[1644245693935,0.31089388,120.97,120.85,0.07399]
[1644245694134,12.411,120.96,120.85,0.07399]
[1644245694334,46.56652805,120.95,120.85,6.15855]
[1644245694534,46.56652805,120.95,120.82,0.66363017]
[1644245694834,1.17824851,120.96,120.83,106.0]
[1644245695035,10.11,120.98,120.83,141.59767995]
[1644245695236,15.0,121.01,120.85,0.66363017]
[1644245695435,15.0,121.01,120.86,14.244]
[1644245695635,15.0,121.01,120.86,52.01532767]
[1644245695836,15.0,121.01,120.87,79.11340643]
[1644245696039,0.1,121.05,120.88,26.6449]
[1644245696338,0.1,121.06,120.88,210.19658802]
[1644245696536,0.1,121.06,120.89,56.92168802]
[1644245696737,0.1,121.06,120.9,14.243]
[1644245696936,0.1,121.06,120.93,1.51]
[1644245697138,0.1,121.06,120.95,39.53051244]
[1644245697336,0.1,121.06,120.98,12.396]
[1644245697536,0.1,121.06,120.98,51.26304448]
[1644245697737,0.1,121.06,120.99,1.77213818]
[1644245698137,0.1,121.06,120.99,2.02213818]
[1644245698339,0.1,121.06,120.97,43.09193818]
[1644245698939,0.1,121.06,120.97,43.34193818]
[1644245699139,0.1,121.06,120.97,81.45939433]
[1644245700040,0.1,121.06,120.99,12.3977]
[1644245701346,0.1,121.06,120.97,12.3999]
[1644245701548,0.1,121.06,120.9,4.131]
[1644245701750,4.132,121.05,120.88,14.242]
[1644245701947,14.242,121.05,120.86,18.53439222]
[1644245702148,46.6345,121.04,120.86,16.76225404]
[1644245702346,4.133,121.03,120.86,16.76225404]
[1644245702549,12.4067,121.01,120.9,47.50037391]
[1644245702847,0.25,121.01,120.9,47.50037391]
[1644245703051,0.25,121.01,120.9,49.27251209]
[1644245703247,0.25,121.01,120.9,59.38251209]
[1644245703448,50.7675,121.04,120.9,59.63251209]
[1644245703652,46.6345,121.04,120.9,65.63251209]
[1644245703850,46.8845,121.04,120.93,12.4043]
[1644245704452,26.50107264,121.03,120.94,36.09591145]
[1644245704652,46.6345,121.04,120.94,36.09591145]
[1644245704953,46.6345,121.04,120.95,12.4023]
[1644245706055,59.0379,121.04,120.94,10.11]
[1644245706455,25.71799506,121.03,120.94,55.93131121]
[1644245706854,0.25,121.03,120.94,55.93131121]
[1644245707055,0.25,121.03,120.94,57.95344939]
[1644245707255,0.25,121.03,120.94,70.35674939]
[1644245707455,0.25,121.03,120.94,74.48874939]
[1644245707854,20.14341951,121.03,120.94,74.23874939]
[1644245708257,20.14341951,121.03,120.94,74.48874939]
[1644245708457,2000.199961,121.0,120.94,74.48874939]
[1644245708658,2000.199961,121.0,120.94,34.66743818]
[1644245708859,2000.199961,121.0,120.94,28.66743818]
[1644245709058,2000.199961,121.0,120.94,34.66743818]
[1644245709661,20.14341951,120.99,120.94,32.6453]
[1644245709862,20.14341951,120.99,120.94,28.5133]
[1644245710360,2000.199961,121.0,120.94,28.5133]
[1644245710962,2000.199961,121.0,120.94,30.29087031]
[1644245711564,2000.199961,121.0,120.94,75.90219094]
[1644245712062,2000.199961,121.0,120.94,34.67387031]
[1644245712962,2000.199961,121.0,120.94,75.54433568]
[1644245713662,2000.199961,121.0,120.94,30.54087031]
[1644245714681,2000.199961,121.0,120.94,77.27820177]
[1644245715084,2000.199961,121.0,120.94,30.54087031]
[1644245715784,2000.199961,121.0,120.94,34.42387031]
[1644245716483,2000.199961,121.0,120.94,30.29087031]
[1644245716884,2000.199961,121.0,120.94,34.42387031]
[1644245717284,2000.199961,121.0,120.94,30.29087031]
[1644245717983,2000.199961,121.0,120.96,12.3984]
[1644245718385,2023.34276311,121.0,120.97,10.11]
[1644245718585,6.06,120.99,120.97,10.11]
[1644245719288,3.03219997,120.99,120.97,10.11]
[1644245719488,2000.199961,121.0,120.98,12.3989]
[1644245719787,6.06,120.99,120.98,12.3989]
[1644245720286,6.06,120.99,120.98,12.6489]
[1644245721399,6.06,120.99,120.98,12.3989]
[1644245721797,6.06,120.99,120.98,12.6489]
[1644245722892,158.0,120.97,120.86,15.86008228]
[1644245723090,19.14682857,120.96,120.84,3.40190858]
[1644245723290,29.50682857,120.96,120.78,553.04042434]
[1644245723490,4.136,120.95,120.78,553.04042434]
[1644245723691,4.136,120.95,120.79,10.11]
[1644245723891,4.386,120.95,120.8,38.85411054]
[1644245724090,17.0,120.96,120.81,10.11]
[1644245724293,17.25,120.96,120.83,44.96868525]
[1644245724491,17.25,120.96,120.84,10.11]
[1644245724790,23.43045,120.96,120.85,38.30657399]
[1644245724991,23.43045,120.96,120.86,10.11]
[1644245725193,23.43045,120.96,120.87,40.33392339]
[1644245725393,23.43045,120.96,120.87,50.44392339]
[1644245726194,23.18045,120.96,120.87,50.44392339]
[1644245726694,6.18045,120.96,120.87,50.69392339]
[1644245726896,6.18045,120.96,120.87,56.69392339]
[1644245727293,6.18045,120.96,120.87,56.44392339]
[1644245727996,75.8604,120.99,120.87,56.44392339]
[1644245728295,6.18045,120.98,120.87,50.44392339]
[1644245728695,6.43045,120.98,120.87,50.44392339]
[1644245729300,14.244,120.97,120.82,4.135]
[1644245729501,16.39082857,120.97,120.82,4.135]
[1644245729699,16.64082857,120.97,120.82,4.135]
[1644245729902,14.494,120.97,120.82,10.135]
[1644245730099,37.2376,120.97,120.82,10.135]
[1644245730300,12.4152,120.93,120.82,52.53819788]
[1644245730504,41.3764,120.96,120.82,52.53819788]
[1644245730799,0.25,120.93,120.82,52.53819788]
[1644245731201,0.25,120.93,120.82,52.78819788]
[1644245731401,36.9886,120.97,120.82,52.78819788]
[1644245731600,12.4098,120.96,120.82,71.28526788]
[1644245731801,12.4098,120.96,120.82,67.15026788]
[1644245732402,12.4098,120.96,120.82,60.90026788]
[1644245732602,12.4098,120.96,120.82,67.15026788]
[1644245732802,12.4121,120.94,120.82,66.90026788]
[1644245733001,12.4121,120.94,120.82,67.15026788]
[1644245733203,12.6621,120.94,120.82,67.15026788]
[1644245733502,12.6621,120.94,120.82,61.15026788]
[1644245733701,12.6621,120.94,120.82,60.90026788]
[1644245733901,12.6621,120.94,120.82,66.90026788]
[1644245734103,12.6621,120.94,120.82,60.90026788]
[1644245734607,16.5465,120.96,120.82,62.91930901]
[1644245734803,12.4105,120.96,120.82,62.91930901]
[1644245735006,26.8786,120.97,120.82,73.02930901]
[1644245735203,22.7436,120.97,120.82,73.02930901]
[1644245735407,22.7436,120.97,120.86,12.4074]
[1644245735604,22.7436,120.97,120.87,48.38276971]
[1644245735803,35.1526,120.97,120.87,48.38276971]
[1644245736206,35.1526,120.97,120.87,54.46631971]
[1644245738107,35.4026,120.97,120.87,54.46631971]
[1644245738809,35.4026,120.97,120.88,0.024]
[1644245739210,35.1526,120.97,120.88,0.024]
[1644245739408,48.2256,120.99,120.89,1.76904113]
[1644245739608,48.2256,120.99,120.9,47.47561312]
[1644245739812,2000.199961,121.0,120.92,12.4024]
[1644245740007,2000.199961,121.0,120.93,44.67445256]
[1644245740207,2000.199961,121.0,120.93,50.67445256]
[1644245741708,2000.199961,121.0,120.95,12.3994]
[1644245743315,2000.449961,121.0,120.93,12.4019]
[1644245743608,2000.449961,121.0,120.9,10.134]
[1644245743808,2000.449961,121.0,120.9,10.11]
[1644245744010,2000.449961,121.0,120.91,0.024]
[1644245744909,2000.449961,121.0,120.89,0.024]
[1644245745408,2000.449961,121.0,120.88,0.024]
[1644245745807,2000.449961,121.0,120.88,40.73333705]
[1644245746009,2012.855661,121.0,120.9,37.642418]
[1644245746409,2000.199961,121.0,120.91,0.024]
[1644245747007,2000.199961,121.0,120.93,37.02392854]
[1644245747613,2000.199961,121.0,120.91,0.024]
[1644245748213,2000.449961,121.0,120.91,0.024]
[1644245748915,2000.449961,121.0,120.94,12.4009]
[1644245749319,2000.199961,121.0,120.94,12.4009]
[1644245750518,2000.199961,121.0,120.95,52.42872616]
[1644245751023,2000.199961,121.0,120.95,12.4001]
[1644245752121,2000.199961,121.0,120.93,12.4022]
[1644245752322,2000.449961,121.0,120.93,12.4022]
[1644245752521,2000.449961,121.0,120.91,10.134]
[1644245753130,2000.449961,121.0,120.91,56.96029022]
[1644245753524,2000.449961,121.0,120.91,10.134]
[1644245753924,2000.449961,121.0,120.91,22.5381]
[1644245754524,2000.449961,121.0,120.91,65.69993508]
[1644245754725,2000.449961,121.0,120.91,65.94993508]
[1644245754924,2000.199961,121.0,120.91,65.94993508]
[1644245755125,2000.199961,121.0,120.91,73.72434192]
[1644245757244,2000.199961,121.0,120.91,124.34434192]
[1644245757543,2000.199961,121.0,120.94,12.3957]
[1644245757742,2000.199961,121.0,120.94,22.5057]
[1644245757945,1862.2403825,121.0,120.95,42.87412787]
[1644245758143,1862.2403825,121.0,120.95,50.64853471]
[1644245758345,1862.2403825,121.0,120.95,61.00853471]
[1644245758543,1862.2403825,121.0,120.95,16.36]
[1644245758744,1862.2403825,121.0,120.96,12.3949]
[1644245759242,1862.2403825,121.0,120.96,18.6449]
[1644245759443,1862.2403825,121.0,120.96,52.87266757]
[1644245760044,1862.2403825,121.0,120.96,18.3949]
[1644245763247,1862.4903825,121.0,120.96,18.3949]
[1644245763446,1862.4903825,121.0,120.96,12.3949]
[1644245763646,1862.2403825,121.0,120.96,12.3949]
[1644245764248,1862.2403825,121.0,120.98,12.3966]
[1644245764446,6.06,120.99,120.98,12.3966]
[1644245764646,6.06,120.99,120.98,18.3966]
[1644245764845,6.06,120.99,120.98,12.3966]
[1644245765046,6.06,120.99,120.98,18.3966]
[1644245765253,6.06,120.99,120.98,12.3966]
[1644245766148,6.06,120.99,120.91,0.024]
[1644245766347,6.31,120.99,120.91,0.024]
[1644245766649,6.31,120.99,120.87,0.024]
[1644245766853,6.31,120.99,120.88,41.3542]
[1644245767046,53.5463,120.99,120.89,46.7986723]
[1644245767246,53.5463,120.99,120.9,0.024]
[1644245767448,53.5463,120.99,120.9,12.4313]
[1644245767648,53.5463,120.99,120.9,12.4073]
[1644245767848,57.6803,120.99,120.9,12.4073]
[1644245768653,69.8366,120.99,120.91,45.62658557]
[1644245768850,53.2963,120.99,120.92,12.4047]
[1644245769049,6.06,120.99,120.92,12.4047]
[1644245769452,158.0,120.98,120.91,0.024]
[1644245769651,18.58925,120.97,120.87,0.024]
[1644245769850,67.62935,120.97,120.86,0.024]
[1644245770057,6.18045,120.97,120.89,12.4085]
[1644245770350,154.18045,120.98,120.89,12.4085]
[1644245770552,154.18045,120.98,120.9,0.024]
[1644245770753,154.18045,120.98,120.88,0.024]
[1644245771151,23.3137,120.97,120.86,40.9166344]
[1644245771354,23.3137,120.97,120.9,12.4073]
[1644245771552,23.3137,120.97,120.9,53.52336968]
[1644245771954,23.3137,120.97,120.9,12.4073]
[1644245772155,23.5637,120.97,120.9,12.4073]
[1644245773056,23.3137,120.97,120.92,12.4041]
[1644245773260,46.6998,120.99,120.93,48.17526533]
[1644245773455,23.9144,120.99,120.93,48.17526533]
[1644245773658,23.9144,120.99,120.91,0.024]
[1644245773855,23.9144,120.99,120.9,10.36]
[1644245774055,23.9144,120.99,120.93,12.4044]
[1644245775356,24.1644,120.99,120.93,57.56747734]
[1644245775559,23.9144,120.99,120.93,57.56747734]
[1644245776159,23.9144,120.99,120.93,12.4044]
[1644245776960,24.1644,120.99,120.93,12.4044]
[1644245777561,24.1644,120.99,120.89,0.024]
[1644245777762,24.1644,120.99,120.88,6.10705]
[1644245777961,28.2994,120.99,120.88,6.10705]
[1644245778162,28.2994,120.99,120.89,0.024]
[1644245778962,40.7077,120.99,120.89,0.024]
[1644245779371,51.12626358,120.99,120.89,0.024]
[1644245779563,52.99126358,120.99,120.87,0.024]
[1644245779763,4.134,120.98,120.9,0.024]
[1644245779963,12.4128,120.96,120.9,0.024]
[1644245780163,12.4128,120.96,120.86,43.42803796]
[1644245780365,12.6628,120.96,120.86,43.42803796]
[1644245780564,12.6628,120.96,120.87,0.024]
[1644245780967,0.25,120.96,120.87,0.024]
[1644245781165,16.5444,120.98,120.88,40.80794956]
[1644245781366,4.134,120.98,120.88,40.80794956]
[1644245781568,38.1584,120.99,120.89,0.024]
[1644245781791,28.0484,120.99,120.89,0.024]
[1644245781966,28.0484,120.99,120.85,0.024]
[1644245782167,28.0484,120.99,120.85,6.10856]
[1644245782367,40.4582,120.99,120.87,12.4098]
[1644245782567,29.9144,120.99,120.88,0.024]
[1644245782766,23.9144,120.99,120.88,0.024]
[1644245782966,23.9144,120.99,120.86,34.61304781]
[1644245782967,23.9144,120.99,120.86,38.77104781]
[1644245783168,23.9144,120.99,120.87,0.024]
[1644245783367,23.9144,120.99,120.88,42.99825858]
[1644245783571,23.9144,120.99,120.9,41.4916798]
[1644245783769,23.9144,120.99,120.9,41.5156798]
[1644245784168,23.9144,120.99,120.9,41.4916798]
[1644245784467,23.9144,120.99,120.91,12.4061]
[1644245785468,23.9144,120.99,120.91,47.3885158]
[1644245785667,24.1644,120.99,120.91,47.3885158]
[1644245785869,23.9144,120.99,120.91,12.4061]
[1644245787069,23.9144,120.99,120.91,12.4301]
[1644245787968,23.9144,120.99,120.91,12.4061]
[1644245788771,1862.2403825,121.0,120.92,41.98038273]
[1644245788969,1862.2403825,121.0,120.94,12.4029]
[1644245790373,1862.2403825,121.0,120.95,47.15291595]
[1644245790577,1862.2403825,121.0,120.96,12.3989]
[1644245794375,1862.4903825,121.0,120.96,12.3989]
[1644245795974,1862.2403825,121.0,120.96,12.3989]
[1644245798498,1862.2403825,121.0,120.94,12.4028]
[1644245800697,1862.2403825,121.0,120.95,37.09279637]
[1644245800997,1862.2403825,121.0,120.96,12.4002]
[1644245801199,1862.2403825,121.0,120.97,34.56313166]
[1644245801600,1862.2403825,121.0,120.97,40.81313166]
[1644245801798,1862.2403825,121.0,120.98,1.76984727]
[1644245801997,1862.2403825,121.0,120.98,12.397]
[1644245803098,1862.2403825,121.0,120.98,49.17137136]
[1644245803298,1862.2403825,121.0,120.98,49.42137136]
[1644245803497,1862.2403825,121.0,120.98,49.17137136]
[1644245803699,1862.2403825,121.0,120.98,16.529]
[1644245804101,1862.2403825,121.0,120.98,12.397]
[1644245805102,1862.2403825,121.0,120.98,12.647]
[1644245805303,1862.2403825,121.0,120.98,12.397]
[1644245805703,1862.2403825,121.0,120.98,11.897]
[1644245808307,1862.2403825,121.0,120.98,14.92919997]
[1644245808505,1862.2403825,121.0,120.98,11.897]
[1644245810209,1862.2403825,121.0,120.96,12.4006]
[1644245812220,1862.4903825,121.0,120.96,12.4006]
[1644245812919,1861.4903825,121.0,120.96,12.4006]
[1644245813715,1861.2403825,121.0,120.96,52.18161087]
[1644245814716,1861.2403825,121.0,120.96,12.4006]
[1644245817520,1861.2403825,121.0,120.97,38.09962821]
[1644245817725,1861.2403825,121.0,120.98,12.3974]
[1644245822631,1861.2403825,121.0,120.98,55.27482139]
[1644245823048,1861.2403825,121.0,120.98,12.3974]
[1644245823229,1584.74955967,121.0,120.99,3.03219997]
[1644245823428,1531.97935386,121.0,120.99,3.03219997]
[1644245823628,1381.64755352,121.0,120.99,31.78629997]
[1644245823829,1043.27715352,121.0,120.99,37.68814724]
[1644245824028,845.65345352,121.0,120.99,25.29404724]
[1644245824531,571.67825352,121.0,120.99,15.18404724]
[1644245824729,571.67825352,121.0,120.99,9.28219997]
[1644245824929,571.67825352,121.0,120.99,19.39219997]
[1644245825129,571.67825352,121.0,120.99,13.39219997]
[1644245825432,571.67825352,121.0,120.99,13.14219997]
[1644245825729,571.67825352,121.0,120.99,25.78239997]
[1644245825931,571.67825352,121.0,120.98,41.3137]
[1644245826132,571.67825352,121.0,120.97,10.11]
[1644245826331,42.74246887,120.99,120.95,4.132]
[1644245826534,42.74246887,120.99,120.94,1.1309242]
[1644245826837,42.99246887,120.99,120.94,12.4028]
[1644245827334,42.74246887,120.99,120.94,12.4028]
[1644245828139,571.17825352,121.0,120.94,12.4028]
[1644245828736,571.42825352,121.0,120.94,12.4028]
[1644245829136,45.56310048,120.99,120.94,12.4028]
[1644245829337,45.81310048,120.99,120.94,12.4028]
[1644245829736,571.17825352,121.0,120.94,12.4028]
[1644245829937,571.17825352,121.0,120.94,18.4028]
[1644245830140,571.17825352,121.0,120.96,12.3964]
[1644245830336,571.17825352,121.0,120.97,10.11]
[1644245830570,571.17825352,121.0,120.98,6.06439994]
[1644245830758,41.35838321,120.99,120.98,6.06439994]
[1644245831360,571.17825352,121.0,120.98,15.43099997]
[1644245831560,488.56205352,121.0,120.99,3.03219997]
[1644245831762,488.56205352,121.0,120.99,18.20137053]
[1644245831959,488.56205352,121.0,120.96,1.77697059]
[1644245832164,488.56205352,121.0,120.97,10.11]
[1644245832763,488.56205352,121.0,120.98,3.03219997]
[1644245832963,37.73506341,120.99,120.98,3.03219997]
[1644245833160,37.73506341,120.99,120.98,12.3986]
[1644245833963,37.73506341,120.99,120.98,15.43079997]
[1644245834563,37.73506341,120.99,120.98,12.3986]
[1644245834962,488.56205352,121.0,120.98,12.3986]
[1644245835367,488.56205352,121.0,120.99,15.42879997]
[1644245835765,491.59425349,121.0,120.99,12.3966]
[1644245835970,491.59425349,121.0,120.97,41.3221]
[1644245836168,34.43532543,120.99,120.97,41.3221]
[1644245836565,488.56205352,121.0,120.98,15.42989997]
[1644245836766,488.56205352,121.0,120.98,25.78989997]
[1644245837171,405.93205352,121.0,120.98,31.78989997]
[1644245837772,323.30665352,121.0,120.98,31.53989997]
[1644245837974,109.0,120.98,120.94,2.90789479]
[1644245838176,323.30665352,121.0,120.94,6.0]
[1644245838370,323.30665352,121.0,120.93,4.132]
[1644245838572,323.30665352,121.0,120.95,12.3989]
[1644245838770,35.42337584,120.99,120.95,12.3989]
[1644245838969,323.30665352,121.0,120.96,45.27310692]
[1644245839369,323.30665352,121.0,120.95,10.11]
[1644245839570,323.30665352,121.0,120.97,12.3969]
[1644245840269,323.30665352,121.0,120.97,22.7569]
[1644245840471,323.30665352,121.0,120.98,45.91887136]
[1644245840669,240.68345352,121.0,120.99,12.3943]
[1644245841068,196.48919,121.0,120.99,18.6443]
[1644245841275,101.50799217,121.0,120.99,18.6443]
[1644245841670,89.11849217,121.0,120.99,6.25]
[1644245841970,6.52469217,121.0,120.99,20.492]
[1644245842374,0.1,121.06,120.99,20.492]
[1644245842574,0.1,121.06,121.0,41.2989]
[1644245842771,0.1,121.06,121.01,10.11]
[1644245842971,0.1,121.06,121.01,22.4997]
[1644245843173,0.1,121.06,121.01,22.7497]
[1644245844581,0.1,121.06,121.01,28.7497]
[1644245844779,0.5371074,121.07,121.01,28.7497]
[1644245845676,36.59679192,121.07,121.01,28.7497]
[1644245845877,0.1,121.06,121.01,28.7497]
[1644245846075,36.29679192,121.07,121.01,28.7497]
[1644245847579,0.2371074,121.07,121.01,28.7497]
[1644245847779,0.1371074,121.07,121.01,30.52206101]
[1644245848177,52.24986042,121.14,121.01,30.52206101]
[1644245848576,43.23034449,121.13,121.02,39.52580355]
[1644245848779,47.01438713,121.11,121.05,12.3881]
[1644245849178,47.26438713,121.11,121.05,12.3881]
[1644245849777,47.01438713,121.11,121.05,12.3881]
[1644245850777,47.01438713,121.11,121.05,12.6381]
[1644245850978,47.01438713,121.11,121.05,12.3881]
[1644245851178,47.26438713,121.11,121.05,12.3881]
[1644245851778,47.01438713,121.11,121.05,12.3881]
[1644245852380,47.26438713,121.11,121.05,12.3881]
[1644245854181,47.01438713,121.11,121.05,12.3881]
[1644245854982,47.01438713,121.11,121.03,12.3932]
[1644245855784,47.01438713,121.11,121.02,12.3932]
[1644245855985,47.01438713,121.11,120.98,4.128]
[1644245856186,51.5499,121.1,120.98,4.128]
[1644245856385,158.0,121.08,120.96,10.11]
[1644245856587,21.07355091,121.06,120.95,12.3975]
[1644245856811,41.36438174,121.04,120.92,14.266]
[1644245856989,41.36438174,121.04,120.92,14.242]
[1644245857186,60.01648174,121.04,120.92,9.11]
[1644245857387,60.01648174,121.04,120.93,0.024]
[1644245857586,4.132,121.03,120.93,0.024]
[1644245857785,0.25,121.03,120.95,12.4016]
[1644245858586,0.25,121.03,120.87,51.7509242]
[1644245858786,158.0,121.02,120.88,16.19305]
[1644245859087,158.0,121.02,120.89,11.88236101]
[1644245859088,24.9195,121.01,120.89,11.88236101]
[1644245859286,37.18058359,121.0,120.89,53.26609784]
[1644245859488,37.18058359,121.0,120.95,12.4016]
[1644245861698,114.0,120.99,120.94,41.3296]
[1644245861898,114.0,120.99,120.9,11.88236101]
[1644245862098,114.0,120.99,120.9,1.77236101]
[1644245862299,114.0,120.99,120.92,12.4026]
[1644245862699,46.47318528,120.98,120.92,59.88734587]
[1644245862899,16.5352,121.04,120.93,1.76776567]
[1644245863203,23.2157,121.03,120.93,2.01776567]
[1644245863400,23.2157,121.03,120.93,41.3336]
[1644245863699,23.2157,121.03,120.92,47.48474587]
[1644245863899,48.19899907,121.02,120.92,47.48474587]
[1644245864099,44.06599907,121.02,120.92,49.25251154]
[1644245864515,44.31599907,121.02,120.92,49.25251154]
[1644245864714,44.31599907,121.02,120.94,51.39775561]
[1644245864915,48.19799907,121.02,120.94,51.39775561]
[1644245865116,48.19799907,121.02,120.8,50.62]
[1644245865117,58.30799907,121.02,120.8,50.62]
[1644245865318,64.30799907,121.02,120.8,50.62]
[1644245865515,64.30799907,121.02,120.86,1.77319941]
[1644245865718,64.30799907,121.02,120.86,7.77319941]
[1644245865916,64.30799907,121.02,120.86,1.77319941]
[1644245866116,64.30799907,121.02,120.9,36.0645366]
[1644245866315,76.96159907,121.02,120.9,36.0645366]
[1644245866515,76.96159907,121.02,120.9,37.83773601]
[1644245867116,76.96159907,121.02,120.9,36.0645366]
[1644245867517,76.96159907,121.02,120.9,12.4058]
[1644245868116,76.71159907,121.02,120.9,12.4058]
[1644245868617,76.71159907,121.02,120.91,35.73797647]
[1644245868817,72.57959907,121.02,120.91,35.73797647]
[1644245869017,72.57959907,121.02,120.94,45.90167732]
[1644245869220,72.57959907,121.02,120.93,12.4033]
[1644245870318,4.133,121.01,120.93,12.4033]
[1644245870519,26.6481,121.01,120.91,12.4053]
[1644245870721,32.6481,121.01,120.86,41.3569]
[1644245870923,32.6481,121.01,120.84,10.11]
[1644245870924,34.79492857,121.01,120.84,10.11]
[1644245871119,79.4376,121.0,120.79,10.11]
[1644245871322,61.91942285,120.99,120.8,45.82615849]
[1644245871522,35.30902658,120.94,120.82,54.78000665]
[1644245871821,4.136,120.93,120.82,12.4144]
[1644245872320,23.2864,120.92,120.82,12.4144]
[1644245872521,35.7009,120.92,120.8,12.4162]
[1644245872819,46.01569872,120.91,120.8,60.25619591]
[1644245873221,46.26569872,120.91,120.8,60.25619591]
[1644245873621,46.26569872,120.91,120.8,62.02939532]
[1644245873921,46.26569872,120.91,120.8,60.25619591]
[1644245874521,46.26569872,120.91,120.8,62.02939532]